{"text_format":"3","workbook":"xlsx","n_sheets":1,"sheets":["COSTOS DE LA REFORMA"],"not_rendered":{"images":2,"defined_names":4},"read":"whole","date_system":"1900"}

{"sheet":"COSTOS DE LA REFORMA","index":0,"n_rows":28,"n_cols":8,"rows_kept":28,"merged":[[25,1,25,5],[26,1,26,5],[27,1,27,5]]}
[null,"HOJA DE CÁLCULO DE LOS COSTOS DE REFORMA DE LA COCINA"]
[]
[null,"Categoría","Elementos","Cantidad","Costo estimado","Costo real","Costo estimado total","Costo real total"]
[null,"Armarios","Armarios bajos: módulos estándar (cantidad en metros lineales)",25,{"v":5,"d":"$5.00"},null,{"$f":"Datos[[#This Row],[Cantidad]]*Datos[[#This Row],[Costo estimado]]","v":{"v":125,"d":"$125"}},{"$f":"Datos[[#This Row],[Cantidad]]*Datos[[#This Row],[Costo real]]","v":{"v":0,"d":"$0"}}]
[null,"Armarios","Armarios altos: módulos estándar (cantidad en metros lineales)",25,{"v":3.5,"d":"$3.50"},null,{"$f":"Datos[[#This Row],[Cantidad]]*Datos[[#This Row],[Costo estimado]]","v":{"v":87.5,"d":"$88"}},{"$f":"Datos[[#This Row],[Cantidad]]*Datos[[#This Row],[Costo real]]","v":{"v":0,"d":"$0"}}]
[null,"Aparatos de limpieza","Lavavajillas: estándar",1,{"v":250,"d":"$250.00"},null,{"$f":"Datos[[#This Row],[Cantidad]]*Datos[[#This Row],[Costo estimado]]","v":{"v":250,"d":"$250"}},{"$f":"Datos[[#This Row],[Cantidad]]*Datos[[#This Row],[Costo real]]","v":{"v":0,"d":"$0"}}]
[null,"Aparatos de limpieza","Triturador de residuos: estándar",1,{"v":175,"d":"$175.00"},null,{"$f":"Datos[[#This Row],[Cantidad]]*Datos[[#This Row],[Costo estimado]]","v":{"v":175,"d":"$175"}},{"$f":"Datos[[#This Row],[Cantidad]]*Datos[[#This Row],[Costo real]]","v":{"v":0,"d":"$0"}}]
[null,"Aparatos de cocina","Cocina: independiente estándar",1,{"v":375,"d":"$375.00"},null,{"$f":"Datos[[#This Row],[Cantidad]]*Datos[[#This Row],[Costo estimado]]","v":{"v":375,"d":"$375"}},{"$f":"Datos[[#This Row],[Cantidad]]*Datos[[#This Row],[Costo real]]","v":{"v":0,"d":"$0"}}]
[null,"Aparatos de cocina","Microondas: estándar",1,{"v":300,"d":"$300.00"},null,{"$f":"Datos[[#This Row],[Cantidad]]*Datos[[#This Row],[Costo estimado]]","v":{"v":300,"d":"$300"}},{"$f":"Datos[[#This Row],[Cantidad]]*Datos[[#This Row],[Costo real]]","v":{"v":0,"d":"$0"}}]
[null,"Encimeras","Superficie sólida (cantidad en metros lineales)",23,{"v":10,"d":"$10.00"},null,{"$f":"Datos[[#This Row],[Cantidad]]*Datos[[#This Row],[Costo estimado]]","v":{"v":230,"d":"$230"}},{"$f":"Datos[[#This Row],[Cantidad]]*Datos[[#This Row],[Costo real]]","v":{"v":0,"d":"$0"}}]
[null,"Puertas","Interior: madera maciza chapada",1,{"v":65,"d":"$65.00"},null,{"$f":"Datos[[#This Row],[Cantidad]]*Datos[[#This Row],[Costo estimado]]","v":{"v":65,"d":"$65"}},{"$f":"Datos[[#This Row],[Cantidad]]*Datos[[#This Row],[Costo real]]","v":{"v":0,"d":"$0"}}]
[null,"Extras","Extras: agua caliente instantánea estándar",1,{"v":120,"d":"$120.00"},null,{"$f":"Datos[[#This Row],[Cantidad]]*Datos[[#This Row],[Costo estimado]]","v":{"v":120,"d":"$120"}},{"$f":"Datos[[#This Row],[Cantidad]]*Datos[[#This Row],[Costo real]]","v":{"v":0,"d":"$0"}}]
[null,"Extras","Extras: dosificador de jabón",1,{"v":40,"d":"$40.00"},null,{"$f":"Datos[[#This Row],[Cantidad]]*Datos[[#This Row],[Costo estimado]]","v":{"v":40,"d":"$40"}},{"$f":"Datos[[#This Row],[Cantidad]]*Datos[[#This Row],[Costo real]]","v":{"v":0,"d":"$0"}}]
[null,"Grifería","Grifo: mando, estándar",1,{"v":130,"d":"$130.00"},null,{"$f":"Datos[[#This Row],[Cantidad]]*Datos[[#This Row],[Costo estimado]]","v":{"v":130,"d":"$130"}},{"$f":"Datos[[#This Row],[Cantidad]]*Datos[[#This Row],[Costo real]]","v":{"v":0,"d":"$0"}}]
[null,"Suelo","Laminado (cantidad en metros cuadrados)",165,{"v":3.5,"d":"$3.50"},null,{"$f":"Datos[[#This Row],[Cantidad]]*Datos[[#This Row],[Costo estimado]]","v":{"v":577.5,"d":"$578"}},{"$f":"Datos[[#This Row],[Cantidad]]*Datos[[#This Row],[Costo real]]","v":{"v":0,"d":"$0"}}]
[null,"Electrodomésticos de lavado","Lavadora: estándar",1,{"v":500,"d":"$500.00"},null,{"$f":"Datos[[#This Row],[Cantidad]]*Datos[[#This Row],[Costo estimado]]","v":{"v":500,"d":"$500"}},{"$f":"Datos[[#This Row],[Cantidad]]*Datos[[#This Row],[Costo real]]","v":{"v":0,"d":"$0"}}]
[null,"Electrodomésticos de lavado","Secadora: estándar",1,{"v":375,"d":"$375.00"},null,{"$f":"Datos[[#This Row],[Cantidad]]*Datos[[#This Row],[Costo estimado]]","v":{"v":375,"d":"$375"}},{"$f":"Datos[[#This Row],[Cantidad]]*Datos[[#This Row],[Costo real]]","v":{"v":0,"d":"$0"}}]
[null,"Iluminación","Iluminación: luces empotradas",4,{"v":35,"d":"$35.00"},null,{"$f":"Datos[[#This Row],[Cantidad]]*Datos[[#This Row],[Costo estimado]]","v":{"v":140,"d":"$140"}},{"$f":"Datos[[#This Row],[Cantidad]]*Datos[[#This Row],[Costo real]]","v":{"v":0,"d":"$0"}}]
[null,"Refrigeración","Nevera: independiente, acabados de lujo",1,{"v":1200,"d":"$1,200.00"},null,{"$f":"Datos[[#This Row],[Cantidad]]*Datos[[#This Row],[Costo estimado]]","v":{"v":1200,"d":"$1,200"}},{"$f":"Datos[[#This Row],[Cantidad]]*Datos[[#This Row],[Costo real]]","v":{"v":0,"d":"$0"}}]
[null,"Fregaderos","Doble seno, acero inoxidable, acabados de lujo",1,{"v":125,"d":"$125.00"},null,{"$f":"Datos[[#This Row],[Cantidad]]*Datos[[#This Row],[Costo estimado]]","v":{"v":125,"d":"$125"}},{"$f":"Datos[[#This Row],[Cantidad]]*Datos[[#This Row],[Costo real]]","v":{"v":0,"d":"$0"}}]
[null,"Ventilación","Campana: con conducto estándar",1,{"v":180,"d":"$180.00"},null,{"$f":"Datos[[#This Row],[Cantidad]]*Datos[[#This Row],[Costo estimado]]","v":{"v":180,"d":"$180"}},{"$f":"Datos[[#This Row],[Cantidad]]*Datos[[#This Row],[Costo real]]","v":{"v":0,"d":"$0"}}]
[null,"Paredes","Cartón-yeso (cantidad en metros cuadrados)",70,{"v":2,"d":"$2.00"},null,{"$f":"Datos[[#This Row],[Cantidad]]*Datos[[#This Row],[Costo estimado]]","v":{"v":140,"d":"$140"}},{"$f":"Datos[[#This Row],[Cantidad]]*Datos[[#This Row],[Costo real]]","v":{"v":0,"d":"$0"}}]
[null,"Ventanas","Correderas",2,{"v":120,"d":"$120.00"},null,{"$f":"Datos[[#This Row],[Cantidad]]*Datos[[#This Row],[Costo estimado]]","v":{"v":240,"d":"$240"}},{"$f":"Datos[[#This Row],[Cantidad]]*Datos[[#This Row],[Costo real]]","v":{"v":0,"d":"$0"}}]
[null,"Otros",{"$nulls":4},{"$f":"Datos[[#This Row],[Cantidad]]*Datos[[#This Row],[Costo estimado]]","v":{"v":0,"d":"$0"}},{"$f":"Datos[[#This Row],[Cantidad]]*Datos[[#This Row],[Costo real]]","v":{"v":0,"d":"$0"}}]
[null,"Total",null,null,{"$f":"SUBTOTAL(109,Datos[Costo estimado])","v":{"v":4014,"d":"$4,014.00"}},{"$f":"SUBTOTAL(109,Datos[Costo real])","v":{"v":0,"d":"$0.00"}},{"$f":"SUBTOTAL(109,Datos[Costo estimado total])","v":{"v":5375,"d":"$5,375.00"}},{"$f":"SUBTOTAL(109,Datos[Costo real total])","v":{"v":0,"d":"$0.00"}}]
[null,"Subtotal",{"$nulls":4},{"$f":"SUBTOTAL(109,Datos[Costo estimado total])","v":{"v":5375,"d":"$5,375.00"}},{"$f":"SUBTOTAL(109,Datos[Costo real total])","v":{"v":0,"d":"$0.00"}}]
[null,"Costos inesperados: agregar un 30 %",{"$nulls":4},{"$f":"G26*0.3","v":{"v":1612.5,"d":"$1,612.50"}},{"$f":"H26*0.3","v":{"v":0,"d":"$0.00"}}]
[null,"Total",{"$nulls":4},{"$f":"SUM(G26:G27)","v":{"v":6987.5,"d":"$6,987.50"}},{"$f":"SUM(H26:H27)","v":{"v":0,"d":"$0.00"}}]